bitfinex-derivatives/quotes_SOLF0:USTF0_20241127
["timestamp","ask_amount","ask_price","bid_price","bid_amount"]
[1732694708778,0.18397,233.83,233.71,10.55201079]
[1732694708779,0.18397,233.83,233.74,10.55201079]
[1732694709167,0.18397,233.83,233.77,2.1393]
[1732694710470,0.18397,233.83,233.74,10.55201079]
[1732694710670,0.18397,233.83,233.72,3.8093]
[1732694710877,0.18397,233.83,233.77,10.55201079]
[1732694711491,0.18397,233.83,233.82,2.1389]
[1732694712477,2.54,233.9,233.8,10.55201079]
[1732694712780,13.09201079,233.94,233.87,2.1384]
[1732694712975,13.09201079,233.94,233.8,10.55201079]
[1732694713172,15.22981079,233.94,233.8,10.55201079]
[1732694713377,13.09201079,233.94,233.8,10.55201079]
[1732694713879,9.76333733,233.93,233.8,10.55201079]
[1732694714079,18.19518984,233.93,233.8,10.55201079]
[1732694714281,15.22981079,233.94,233.8,10.55201079]
[1732694714777,15.22981079,233.94,233.85,2.1386]
[1732694714972,12.68981079,233.94,233.85,2.1386]
[1732694715171,20.73042886,233.93,233.78,2.54]
[1732694715382,18.19006668,233.92,233.78,2.54]
[1732694715582,2.54,233.93,233.78,2.54]
[1732694715774,18.18981899,233.92,233.78,2.54]
[1732694715983,2.54,233.93,233.81,10.55201079]
[1732694716184,2.54,233.93,233.82,2.4417]
[1732694716485,2.54,233.93,233.87,2.1384]
[1732694716779,2.54,233.93,233.82,2.4417]
[1732694717880,2.1381,233.91,233.82,4.5805]
[1732694718077,2.1381,233.91,233.82,2.4417]
[1732694718376,2.1381,233.91,233.82,1.228]
[1732694718377,2.1383,233.88,233.82,1.228]
[1732694718584,2.1383,233.88,233.81,2.139]
[1732694718779,2.1383,233.88,233.79,1.3269]
[1732694718976,2.1383,233.88,233.8,2.139]
[1732694719184,2.1383,233.88,233.79,1.3269]
[1732694719595,13.09201079,233.87,233.79,1.3269]
[1732694719880,13.09201079,233.87,233.74,10.55201079]
[1732694719881,13.09201079,233.87,233.71,14.31201079]
[1732694720483,2.1386,233.86,233.77,2.1393]
[1732694720679,13.09201079,233.87,233.77,2.1393]
[1732694720983,2.1388,233.83,233.75,2.1395]
[1732694721281,10.55201079,233.84,233.71,1.22]
[1732694722278,2.1392,233.8,233.73,2.1397]
[1732694722481,4.6792,233.8,233.73,2.1397]
[1732694722682,2.54,233.8,233.71,1.22]
[1732694722883,2.54,233.8,233.69,3.3536]
[1732694723081,10.55201079,233.75,233.59,2.5605]
[1732694723283,10.55201079,233.72,233.59,2.5605]
[1732694723481,10.55201079,233.72,233.63,2.1406]
[1732694724084,10.55201079,233.72,233.59,2.5605]
[1732694724288,10.55201079,233.78,233.64,10.55201079]
[1732694724583,2.54,233.75,233.64,10.55201079]
[1732694724786,2.54,233.75,233.61,2.54]
[1732694724787,10.55201079,233.81,233.67,10.55201079]
[1732694724989,2.54,233.8,233.67,10.55201079]
[1732694725190,2.5326,233.86,233.68,1.2356]
[1732694725191,2.54,233.79,233.68,1.2356]
[1732694725486,2.54,233.8,233.69,2.5605]
[1732694725687,10.55201079,233.78,233.69,2.5605]
[1732694725891,2.54,233.77,233.69,2.5605]
[1732694726088,2.54,233.77,233.64,10.55201079]
[1732694727095,2.54,233.77,233.7,2.1399]
[1732694727490,10.55201079,233.75,233.62,3.6853]
[1732694727695,10.55201079,233.75,233.66,2.1403]
[1732694728293,10.55201079,233.75,233.68,2.1402]
[1732694728695,2.1395,233.76,233.68,2.1402]
[1732694728893,10.55201079,233.75,233.53,0.12388671]
[1732694729194,10.55201079,233.75,233.63,2.1406]
[1732694729195,2.1399,233.72,233.63,2.1406]
[1732694729394,2.4,233.71,233.57,10.55201079]
[1732694729795,2.1402,233.68,233.6,2.1408]
[1732694730097,2.4,233.71,233.57,10.55201079]
[1732694730299,2.14,233.7,233.62,2.1407]
[1732694730895,2.5894,233.76,233.63,10.55201079]
[1732694731099,2.4,233.76,233.66,10.55201079]
[1732694731304,2.4,233.76,233.69,2.1401]
[1732694731601,2.4,233.76,233.66,10.55201079]
[1732694731797,2.4,233.76,233.74,2.1396]
[1732694732002,2.4,233.8,233.69,10.55201079]
[1732694732597,2.4,233.86,233.72,10.55201079]
[1732694732896,4.5385,233.86,233.78,2.1392]
[1732694733296,2.4,233.86,233.75,10.55201079]
[1732694733601,10.55201079,233.87,233.73,3.7018]
[1732694733801,2.4,233.86,233.73,3.7018]
[1732694734198,2.4,233.86,233.77,2.1393]
[1732694734702,10.55201079,233.84,233.73,1.3018]
[1732694735202,2.1389,233.82,233.74,2.1396]
[1732694735603,10.55201079,233.88,233.73,1.3018]
[1732694735902,12.95201079,233.88,233.75,10.55201079]
[1732694737395,12.95201079,233.88,233.8,2.139]
[1732694738501,12.95201079,233.88,233.75,10.55201079]
[1732694738502,2.4,233.88,233.75,10.55201079]
[1732694738804,2.4,233.88,233.81,2.139]
[1732694739605,12.95201079,233.88,233.79,2.1391]
[1732694740398,2.4,233.92,233.75,10.55201079]
[1732694740696,18.19847439,233.91,233.75,10.55201079]
[1732694740899,12.95201079,233.92,233.75,10.55201079]
[1732694741096,18.19764152,233.91,233.83,2.1388]
[1732694741298,8.43294543,233.91,233.78,10.55201079]
[1732694741598,12.95201079,233.92,233.78,10.55201079]
[1732694741798,12.95201079,233.92,233.83,2.1387]
[1732694742003,12.95201079,233.92,233.79,2.514]
[1732694742198,4.7407,233.95,233.79,2.514]
[1732694742405,0.15962,233.98,233.87,10.55201079]
[1732694742602,9.91939203,233.98,233.87,10.55201079]
[1732694742804,8.58847922,233.98,233.87,10.55201079]
[1732694743603,0.15962,233.98,233.87,10.55201079]
[1732694745303,0.15962,233.98,233.9,10.55201079]
[1732694746304,0.15962,233.98,233.92,2.1379]
[1732694748302,0.15962,233.98,233.87,1.2436]
[1732694748504,0.15962,233.98,233.88,2.1383]
[1732694748697,0.15962,233.98,233.87,1.2436]
[1732694749506,0.15962,233.98,233.91,2.138]
[1732694749698,0.15962,233.98,233.87,1.2436]
[1732694750205,0.15962,233.98,233.92,2.1379]
[1732694750712,0.15962,233.98,233.93,2.1379]
[1732694751306,0.15962,233.98,233.87,1.2436]
[1732694751509,0.15962,233.98,233.89,2.1382]
[1732694751904,0.15962,233.98,233.87,1.2436]
[1732694752510,0.15962,233.98,233.89,10.55201079]
[1732694753110,0.15962,233.98,233.91,2.138]
[1732694753305,0.15962,233.98,233.89,10.55201079]
[1732694753706,0.15962,233.98,233.93,2.1379]
[1732694753905,0.15962,233.98,233.89,10.55201079]
[1732694754404,0.15962,233.98,233.93,2.1379]
[1732694755413,0.15962,233.98,233.87,1.2436]
[1732694755802,12.68931079,233.99,233.87,1.2436]
[1732694757313,12.68931079,233.99,233.91,2.1381]
[1732694757508,10.55201079,233.99,233.87,1.2436]
[1732694757704,2.4,234.0,233.89,10.55201079]
[1732694757904,1.3153,234.08,233.98,2.1374]
[1732694758103,1.3153,234.08,233.92,10.55201079]
[1732694758104,12.97201079,234.07,233.92,10.55201079]
[1732694758312,15.10861079,234.07,233.93,2.5833]
[1732694758912,12.97201079,234.07,233.93,2.5833]
[1732694759114,2.1367,234.06,233.93,2.5833]
[1732694760216,2.1367,234.06,233.98,2.1374]
[1732694762420,10.55201079,234.07,233.93,2.5833]
[1732694762609,2.42,234.06,233.93,2.5833]
[1732694763509,2.42,234.06,233.99,2.1373]
[1732694764415,0.36839,234.1,233.99,2.42]
[1732694764608,2.42,234.23,234.04,10.55201079]
[1732694764809,10.55201079,234.21,234.05,2.5924]
[1732694765214,2.1354,234.2,234.05,2.5924]
[1732694766215,2.1354,234.2,234.12,2.1361]
[1732694766514,12.97201079,234.22,234.07,10.55201079]
[1732694766711,2.42,234.21,234.12,2.1361]
[1732694767916,2.1354,234.2,234.13,2.136]
[1732694768116,10.55201079,234.19,234.05,2.5924]
[1732694768611,2.1358,234.17,234.05,2.5924]
[1732694769420,2.1358,234.16,234.05,2.5924]
[1732694769622,2.42,234.15,234.05,2.5924]
[1732694769918,2.42,234.15,234.1,2.1363]
[1732694770317,2.42,234.15,234.05,2.5924]
[1732694771721,2.42,234.15,234.09,2.1363]
[1732694771920,2.42,234.15,234.05,2.5924]
[1732694772622,2.42,234.15,234.09,2.1363]
[1732694773021,2.42,234.15,234.05,2.5924]
[1732694773421,2.42,234.15,234.09,2.1363]
[1732694774224,2.42,234.15,234.05,2.5924]
[1732694774616,2.42,234.19,234.07,10.55201079]
[1732694774819,2.42,234.19,234.12,2.1361]
[1732694775418,2.42,234.19,234.13,2.136]
[1732694775918,2.42,234.19,234.07,10.55201079]
[1732694776119,2.42,234.19,234.05,2.5924]
[1732694776519,2.42,234.19,234.09,2.1364]
[1732694776726,2.1356,234.18,234.05,2.5924]
[1732694777019,2.1356,234.18,234.1,2.1362]
[1732694777215,2.1359,234.15,234.05,2.5924]
[1732694777416,10.55201079,234.17,234.05,2.5924]
[1732694777824,2.136,234.15,234.08,2.1364]
[1732694779327,10.55201079,234.17,234.08,2.1364]
[1732694779532,10.55201079,234.14,234.02,1.3141]
[1732694779826,2.42,234.13,234.02,1.3141]
[1732694780421,2.1362,234.11,234.06,2.1367]
[1732694780616,2.1362,234.11,234.02,1.3141]
[1732694780825,2.42,234.13,234.02,1.3141]
[1732694781026,4.5557,234.17,234.07,2.1365]
[1732694781225,2.42,234.17,234.04,10.55201079]
[1732694781424,2.42,234.17,234.07,10.55201079]
[1732694783124,2.42,234.17,234.11,2.1362]
[1732694783319,2.42,234.17,234.07,10.55201079]
[1732694783829,2.42,234.17,234.11,2.1362]
[1732694786920,2.42,234.17,234.07,10.55201079]
[1732694787117,2.42,234.17,234.13,2.136]
[1732694788921,2.42,234.17,234.12,2.1361]
[1732694790330,4.5557,234.17,234.12,2.1361]
[1732694792231,2.1356,234.18,234.12,2.1361]
[1732694792534,6.73039177,234.17,234.12,2.1361]
[1732694793336,8.86609177,234.17,234.12,2.1361]
[1732694794227,2.36,234.18,234.1,6.73039177]
[1732694794428,2.36,234.18,234.12,6.73039177]
[1732694795233,3.8452,234.26,234.14,6.73039177]
[1732694795428,6.73039177,234.24,234.16,6.73039177]
[1732694795731,6.73039177,234.22,234.16,6.73039177]
[1732694796231,6.73039177,234.22,234.18,2.1356]
[1732694796437,4.495,234.24,234.18,2.1356]
[1732694796837,2.1352,234.23,234.17,2.1356]
[1732694797329,2.36,234.24,234.12,2.5613]
[1732694798127,2.1353,234.22,234.17,2.1357]
[1732694798339,2.1353,234.22,234.12,2.5613]
[1732694798634,2.1355,234.2,234.13,2.136]
[1732694798832,10.5115807,234.23,234.12,2.5613]
[1732694799227,2.36,234.24,234.11,1.3029]
[1732694799228,10.5115807,234.2,234.11,1.3029]
[1732694799431,10.5115807,234.2,234.03,12.8715807]
[1732694799630,12.8715807,234.24,234.03,10.5115807]
[1732694799631,10.5115807,234.17,234.03,10.5115807]
[1732694799843,2.36,234.16,234.03,10.5115807]
[1732694800437,2.1359,234.15,234.08,2.1365]
[1732694800634,2.36,234.16,234.03,10.5115807]
[1732694800837,10.5115807,234.11,234.01,2.4701]
[1732694801034,2.36,234.1,234.01,2.4701]
[1732694802138,4.4964,234.1,234.03,2.1369]
[1732694802334,2.36,234.14,234.01,12.9816807]
[1732694802639,18.1948293,234.13,234.01,12.9816807]
[1732694802840,4.496,234.14,234.06,2.1366]
[1732694803037,18.19479523,234.13,234.01,12.9816807]
[1732694803339,2.36,234.14,234.08,2.1365]
[1732694803536,18.19579526,234.13,234.08,2.1365]
[1732694803736,2.36,234.14,234.01,12.9816807]
[1732694803932,8.43744485,234.13,234.01,12.9816807]
[1732694804434,2.36,234.14,234.07,2.1365]
[1732694804435,4.496,234.14,234.07,2.1365]
[1732694804634,2.36,234.14,234.01,12.9816807]
[1732694805131,18.20920245,234.13,234.04,2.1369]
[1732694805333,18.21061843,234.12,234.04,2.1369]
[1732694805536,2.36,234.14,234.04,2.1369]
[1732694805732,18.21065535,234.13,234.02,2.137]
[1732694806042,18.21065535,234.12,234.01,2.4701]
[1732694806339,2.1363,234.1,234.04,2.1369]
[1732694806736,12.8715807,234.14,234.04,2.1369]
[1732694806937,2.1362,234.12,234.05,2.1368]
[1732694807138,18.21988267,234.11,234.05,2.1368]
[1732694807338,8.45038955,234.1,234.05,2.1368]
[1732694807539,2.1362,234.12,234.05,2.1368]
[1732694807841,18.2287101,234.11,234.05,2.1368]
[1732694808042,8.45039471,234.1,234.05,2.1368]
[1732694808241,2.1362,234.12,234.05,2.1368]
[1732694808439,18.23827768,234.11,234.05,2.1368]
[1732694808639,18.23827768,234.1,234.07,2.1366]
[1732694808943,2.1361,234.13,234.07,2.1366]
[1732694809143,9.79065476,234.12,234.07,2.1366]
[1732694809342,18.25173959,234.12,234.07,2.1366]
[1732694809643,18.25173959,234.11,234.07,2.1366]
[1732694809941,18.25173959,234.1,234.07,2.1366]
[1732694810337,2.1362,234.12,234.07,2.1366]
[1732694810540,18.24967171,234.11,234.07,2.1366]
[1732694810739,18.24967171,234.1,234.07,2.1366]
[1732694810940,2.1362,234.12,234.07,2.1366]
[1732694811143,18.24962241,234.11,234.07,2.1366]
[1732694811345,18.24962241,234.1,234.07,2.1366]
[1732694811542,2.1364,234.1,234.03,2.1369]
[1732694811739,18.24895167,234.09,234.01,2.4701]
[1732694811938,10.81974468,234.08,234.01,2.4701]
[1732694812143,2.36,234.08,234.01,2.4701]
[1732694812441,2.36,234.08,234.01,12.9816807]
[1732694813048,2.36,234.08,234.03,2.137]
[1732694813244,2.36,234.08,234.01,12.9816807]
[1732694814243,2.36,234.08,234.04,2.1368]
[1732694814649,2.36,234.08,234.01,12.9816807]
[1732694815143,2.36,234.08,234.04,2.1368]
[1732694816146,2.36,234.08,233.98,13.0465807]
[1732694816743,2.36,234.08,234.01,2.1371]
[1732694816948,2.36,234.08,233.98,13.0465807]
[1732694817348,2.36,234.08,234.03,2.1369]
[1732694818145,2.1367,234.06,233.99,2.1373]
[1732694818346,2.1367,234.06,233.91,3.5843]
[1732694818347,10.5115807,234.05,233.92,10.5115807]
[1732694818543,18.9675454,234.05,233.92,10.5115807]
[1732694818744,18.24133422,234.04,233.92,10.5115807]
[1732694818947,12.8715807,234.08,233.92,10.5115807]
[1732694819148,18.24163411,234.07,233.92,10.5115807]
[1732694819345,18.24163411,234.06,233.92,10.5115807]
[1732694819655,2.1366,234.07,234.0,2.1372]
[1732694820056,2.1367,234.06,234.0,2.1372]
[1732694820558,2.1364,234.09,233.95,10.5115807]
[1732694820749,20.51344225,234.08,233.98,10.5115807]
[1732694820954,2.28,234.08,234.03,2.1369]
[1732694821153,4.4165,234.08,234.03,2.1369]
[1732694821653,18.23324323,234.07,234.03,2.1369]
[1732694821854,2.1368,234.05,233.99,2.1373]
[1732694822453,2.1368,234.05,233.92,10.5115807]
[1732694822454,10.5115807,234.05,233.95,2.1376]
[1732694822660,18.22915813,234.04,233.92,10.5115807]
[1732694822859,2.1369,234.04,233.92,10.5115807]
[1732694823055,2.1369,234.04,233.98,2.1373]
[1732694823755,2.5385,234.17,233.92,10.5115807]
[1732694823955,10.5115807,234.11,234.02,2.137]
[1732694824159,18.22471781,234.1,234.02,2.137]
[1732694824354,2.1366,234.07,234.02,2.137]
[1732694824855,10.5115807,234.08,233.92,10.5115807]
[1732694825058,18.22212992,234.07,233.92,10.5115807]
[1732694825360,2.137,234.04,233.98,2.1374]
[1732694825560,2.28,234.03,233.98,2.1374]
[1732694825760,2.28,234.02,233.98,2.1374]
[1732694826061,2.28,234.02,233.99,2.1373]
[1732694826255,2.28,234.02,233.92,10.5115807]
[1732694826656,2.28,234.02,233.99,2.1373]
[1732694829055,2.28,234.02,233.92,10.5115807]
[1732694829263,2.28,234.03,233.92,10.5115807]
[1732694829759,2.28,234.03,233.99,2.1373]
[1732694829955,2.28,234.03,233.92,10.5115807]
[1732694830360,2.28,234.03,233.99,2.1373]
[1732694830959,2.28,234.03,233.92,10.5115807]
[1732694831360,2.28,234.03,233.98,2.1373]
[1732694831959,2.1366,234.08,234.01,2.1371]
[1732694832267,6.73306136,234.13,234.05,6.73306136]
[1732694832463,20.48826474,234.12,234.07,6.73306136]
[1732694832760,8.44088135,234.11,234.07,6.73306136]
[1732694832964,2.28,234.12,234.07,6.73306136]
[1732694834066,2.28,234.12,234.05,6.73306136]
[1732694834268,2.28,234.12,234.02,10.51955743]
[1732694834469,2.28,234.12,234.03,3.7288]
[1732694834863,21.77660856,234.22,234.05,10.51955743]
[1732694834864,2.28,234.16,234.05,10.51955743]
[1732694835166,2.28,234.16,234.03,3.7288]
[1732694835167,2.28,234.17,234.03,3.7288]
[1732694835367,12.79955743,234.17,234.03,3.7288]
[1732694836472,2.1358,234.16,234.09,2.1364]
[1732694836665,12.79955743,234.17,234.09,2.1364]
[1732694837269,12.79955743,234.17,234.04,10.51955743]
[1732694837663,2.28,234.17,234.04,10.51955743]
[1732694838271,2.28,234.17,234.11,2.1361]
[1732694838472,2.28,234.17,234.04,10.51955743]
[1732694839163,0.17168,234.22,234.07,10.51955743]
[1732694839368,2.28,234.2,234.07,10.51955743]
[1732694839571,2.28,234.2,234.07,12.79955743]
[1732694840769,2.28,234.2,234.14,2.1359]
[1732694842870,2.28,234.2,234.15,2.1358]
[1732694843065,0.17168,234.22,234.1,10.51955743]
[1732694843277,0.17168,234.22,234.13,10.51955743]
[1732694843467,0.17168,234.22,234.19,2.1354]
[1732694843674,0.17168,234.22,234.15,1.3088]
[1732694843972,0.17168,234.22,234.15,3.4447]
[1732694844178,0.17168,234.22,234.15,1.3088]
[1732694845476,0.17168,234.22,234.15,3.4446]
[1732694845674,0.17168,234.22,234.15,1.3088]
[1732694847583,0.17168,234.22,234.16,2.1358]
[1732694849981,0.17168,234.22,234.17,2.1357]
[1732694850984,12.65475743,234.23,234.17,2.1357]
[1732694852279,12.65475743,234.23,234.15,1.3088]
[1732694852587,12.79955743,234.26,234.15,1.3088]
[1732694853086,2.22,234.25,234.15,1.3088]
[1732694853288,2.22,234.24,234.15,1.3088]
[1732694853878,2.22,234.25,234.15,1.3088]
[1732694854078,2.22,234.26,234.15,1.3088]
[1732694854286,8.94563378,234.26,234.22,2.1352]
[1732694854989,8.94563378,234.26,234.23,2.1351]
[1732694855184,6.72563378,234.26,234.19,6.72563378]
[1732694856683,6.72563378,234.28,234.19,6.72563378]
[1732694857584,2.22,234.3,234.21,6.72563378]
[1732694857585,8.94563378,234.3,234.21,6.72563378]
[1732694858083,8.94563378,234.3,234.25,2.1349]
[1732694860989,6.72563378,234.28,234.2,6.72563378]
[1732694861290,8.94563378,234.3,234.22,6.72563378]
[1732694861693,6.72563378,234.3,234.26,2.1348]
[1732694862289,6.72563378,234.3,234.22,6.72563378]
[1732694862497,6.72563378,234.3,234.27,2.1347]
[1732694862686,2.22,234.31,234.27,2.1347]
[1732694863388,0.36818,234.34,234.26,6.72563378]
[1732694863592,0.36818,234.34,234.28,6.72563378]
[1732694863787,0.36818,234.34,234.29,2.1345]
[1732694863988,0.36818,234.34,234.3,6.72563378]
[1732694864589,2.11750012,234.43,234.32,6.72563378]
[1732694864788,6.72563378,234.41,234.32,6.72563378]
[1732694865292,2.22,234.44,234.36,2.1339]
[1732694865293,4.3533,234.44,234.36,2.1339]
[1732694865488,6.72563378,234.42,234.36,2.1339]
[1732694866590,6.72563378,234.42,234.37,2.1339]
[1732694868386,6.72563378,234.42,234.38,2.1338]
[1732694868589,21.57476184,234.49,234.36,6.72563378]
[1732694868790,6.72563378,234.43,234.36,6.72563378]
[1732694870296,6.72563378,234.43,234.39,2.1337]
[1732694871202,6.72563378,234.43,234.4,2.1335]
[1732694871495,6.72563378,234.45,234.36,6.72563378]
[1732694872391,6.72563378,234.45,234.42,2.1334]
[1732694873092,8.94563378,234.47,234.42,2.1334]
[1732694873293,8.94563378,234.47,234.38,6.72563378]
[1732694873489,6.72563378,234.45,234.41,2.1335]
[1732694874300,2.22,234.47,234.42,2.1334]
[1732694874493,6.72563378,234.45,234.42,2.1334]
[1732694875201,6.72563378,234.43,234.38,2.1338]
[1732694875396,6.72563378,234.43,234.35,12.64783378]
[1732694875894,6.72563378,234.39,234.26,1.06765675]
[1732694876089,6.72563378,234.35,234.27,6.72563378]
[1732694876290,6.72563378,234.33,234.26,1.2315]
[1732694876699,6.72563378,234.31,234.25,6.72563378]
[1732694876898,6.72563378,234.31,234.28,2.1346]
[1732694877996,6.72563378,234.29,234.19,3.4515]
[1732694878201,6.72563378,234.27,234.2,6.72563378]
[1732694879101,6.72563378,234.27,234.24,2.135]
[1732694879302,2.22,234.3,234.22,6.72563378]
[1732694881304,2.22,234.3,234.26,2.1349]
[1732694881506,2.22,234.3,234.24,6.72563378]
[1732694883000,2.22,234.3,234.24,8.86063378]
[1732694883404,8.94563378,234.3,234.22,6.72563378]
[1732694883602,8.94563378,234.3,234.25,2.135]
[1732694884405,8.94563378,234.3,234.22,6.72563378]
[1732694885800,8.94563378,234.3,234.19,3.4515]
[1732694886000,8.94563378,234.3,234.21,6.72563378]
[1732694886207,8.94563378,234.3,234.23,6.72563378]
[1732694886512,8.94563378,234.3,234.26,2.1348]
[1732694886701,2.22,234.3,234.26,2.1348]
[1732694887110,6.72563378,234.32,234.28,2.1347]
[1732694887312,6.72563378,234.32,234.23,6.72563378]
[1732694888308,8.90563378,234.34,234.25,6.72563378]
[1732694888503,8.90563378,234.34,234.19,3.4515]
[1732694888504,2.18,234.35,234.27,6.72563378]
[1732694888708,2.4948,234.4,234.31,6.72563378]
[1732694888906,10.17973378,234.4,234.27,2.18]
[1732694889103,10.17973378,234.4,234.31,6.72563378]
[1732694889303,3.4541,234.4,234.31,6.72563378]
[1732694889505,6.72563378,234.39,234.31,6.72563378]
[1732694890107,1.1986,234.53,234.31,6.72563378]
[1732694890108,8.90563378,234.41,234.31,6.72563378]
[1732694890408,8.90563378,234.41,234.33,6.72563378]
[1732694890409,6.72563378,234.41,234.33,6.72563378]
[1732694890807,6.72563378,234.41,234.38,2.1338]
[1732694891007,2.18,234.42,234.33,6.72563378]
[1732694891214,1.2731,234.52,234.35,6.72563378]
[1732694891416,6.72563378,234.46,234.37,6.72563378]
[1732694892208,6.72563378,234.46,234.4,2.1335]
[1732694892411,2.1329,234.48,234.37,6.72563378]
[1732694892612,6.72563378,234.46,234.37,6.72563378]
[1732694893111,6.72563378,234.46,234.41,2.1335]
[1732694893314,6.72563378,234.58,234.45,6.72563378]
[1732694893607,6.72563378,234.58,234.49,6.72563378]
[1732694893608,18.11572792,234.57,234.49,6.72563378]
[1732694893814,6.72563378,234.56,234.47,6.72563378]
[1732694894405,6.72563378,234.54,234.46,2.18]
[1732694894615,6.72563378,234.54,234.44,6.72563378]
[1732694895217,6.72563378,234.54,234.47,2.1329]
[1732694896313,4.3122,234.56,234.47,2.1329]
[1732694896812,2.18,234.56,234.47,2.1329]
[1732694897016,2.1322,234.55,234.47,2.1329]
[1732694898019,2.1322,234.55,234.48,2.1329]
[1732694898617,2.1325,234.52,234.45,2.1331]
[1732694898914,2.18,234.56,234.41,10.48459617]
[1732694899114,2.1324,234.53,234.46,2.133]
[1732694899316,2.18,234.56,234.41,10.48459617]
[1732694899818,2.1323,234.55,234.41,10.48459617]
[1732694901219,2.1323,234.55,234.47,2.1329]
[1732694901716,2.1323,234.55,234.41,10.48459617]
[1732694902718,2.18,234.56,234.41,10.48459617]
[1732694902918,2.1325,234.52,234.45,2.1331]
[1732694903312,2.1325,234.52,234.4,2.18]
[1732694903313,2.1329,234.48,234.4,2.1335]
[1732694903518,10.48459617,234.5,234.4,2.1335]
[1732694903519,12.66459617,234.47,234.4,2.1335]
[1732694903913,2.133,234.46,234.4,2.1335]
[1732694904416,12.66459617,234.47,234.38,2.1337]
[1732694904417,2.1332,234.45,234.38,2.1337]
[1732694904618,10.48459617,234.44,234.38,2.1337]
[1732694905318,10.48459617,234.44,234.37,2.1338]
[1732694905710,10.48459617,234.44,234.35,2.134]
[1732694905915,10.48459617,234.44,234.3,2.18]
[1732694906313,10.48459617,234.34,234.19,0.12230209]
[1732694906521,2.18,234.33,234.2,2.77587198]
[1732694906721,2.18,234.33,234.18,2.4419]
[1732694906921,4.3142,234.33,234.19,1.06786988]
[1732694907221,4.3142,234.33,234.18,2.4419]
[1732694907421,4.3142,234.33,234.27,2.1347]
[1732694907422,2.18,234.33,234.27,2.1347]
[1732694907624,2.1341,234.35,234.27,2.1347]
[1732694907821,2.18,234.34,234.27,2.1347]
[1732694908117,2.18,234.33,234.29,2.1345]
[1732694908518,2.18,234.32,234.23,10.48459617]
[1732694908721,2.18,234.32,234.24,1.2465]
[1732694909428,2.1337,234.39,234.24,1.2465]
[1732694909621,2.18,234.38,234.31,2.1344]
[1732694910116,1.0,234.43,234.29,10.48459617]
[1732694910317,2.18,234.42,234.3,2.5045]
[1732694910721,2.18,234.42,234.33,2.1342]
[1732694911114,2.18,234.42,234.3,2.5045]
[1732694911826,2.22,234.41,234.3,2.5045]
[1732694912227,2.22,234.41,234.34,2.1341]
[1732694914226,2.22,234.41,234.32,2.1343]
[1732694914420,10.48459617,234.37,234.24,1.2465]
[1732694914826,2.134,234.36,234.28,2.1347]
[1732694915025,2.22,234.35,234.28,2.1347]
[1732694915526,2.22,234.35,234.29,2.1346]
[1732694915727,2.22,234.35,234.24,1.2465]
[1732694916319,2.1341,234.34,234.23,2.1351]
[1732694916528,2.22,234.35,234.2,10.48459617]
[1732694916920,2.1341,234.34,234.26,2.1348]
[1732694917630,2.22,234.35,234.26,2.1348]
[1732694917827,10.48459617,234.34,234.19,2.5862]
[1732694918025,10.48459617,234.31,234.19,2.5862]
[1732694918428,10.48459617,234.31,234.21,2.1353]
[1732694918429,2.1347,234.28,234.21,2.1353]
[1732694918730,2.22,234.27,234.21,2.1353]
[1732694919331,2.22,234.27,234.19,2.5862]
[1732694919528,2.22,234.27,234.22,2.1352]
[1732694920127,2.22,234.27,234.19,2.5862]
[1732694921525,2.22,234.27,234.25,2.1349]
[1732694927438,2.1343,234.33,234.25,2.1349]
[1732694927642,2.22,234.32,234.25,2.1349]
[1732694928332,6.72355235,234.29,234.25,2.1349]
[1732694929137,6.72355235,234.29,234.23,2.1351]
[1732694929336,6.72355235,234.27,234.23,2.1351]
[1732694929533,2.22,234.26,234.23,2.1351]